bitfinex/quotes_ETHUSD_20240828
["timestamp","ask_amount","ask_price","bid_price","bid_amount"]
[1724864532536,0.41573666,2519.7,2519.4,4.61565549]
[1724864532705,0.41573666,2519.7,2519.4,8.58472549]
[1724864532914,0.41573666,2519.7,2519.4,4.61564549]
[1724864533240,0.41573666,2519.7,2519.4,3.96907]
[1724864533736,0.41573666,2519.7,2519.2,3.96944]
[1724864533974,4.38456666,2519.7,2519.0,3.96971]
[1724864534142,3.96949,2519.3,2518.8,0.80200025]
[1724864534325,3.96945,2519.3,2518.7,3.9703]
[1724864534531,10.68581666,2519.7,2519.0,3.96981]
[1724864534726,2.74813666,2519.7,2518.8,3.96999]
[1724864535043,2.74813666,2519.7,2518.4,3.9707]
[1724864535044,6.71693666,2519.7,2519.0,7.93941]
[1724864535247,0.41573666,2519.7,2519.3,3.96924]
[1724864535451,0.41573666,2519.7,2519.4,3.96917]
[1724864535766,0.41573666,2519.7,2519.6,7.93776]
[1724864536330,0.41573666,2519.7,2519.6,3.96888]
[1724864536554,0.41573666,2519.7,2519.6,4.98888]
[1724864537468,0.41573666,2519.7,2519.6,9.03713062]
[1724864538677,3.96628,2521.3,2519.6,1.09937062]
[1724864538911,2.2989,2521.5,2520.9,3.96675]
[1724864539176,2.2989,2521.5,2520.4,2.4448]
[1724864539177,2.2989,2522.0,2521.4,3.96595]
[1724864539388,0.41540144,2521.8,2521.5,3.96587]
[1724864539587,0.41540144,2521.8,2521.7,7.93114]
[1724864540135,2.2989,2523.0,2521.5,4.04517557]
[1724864540448,3.9643,2522.6,2521.6,0.48381265]
[1724864540646,3.96401,2522.7,2521.9,3.96512]
[1724864541173,3.96433,2522.5,2521.9,3.96512]
[1724864541592,3.96401,2522.7,2521.9,3.96512]
[1724864541960,4.19365,2522.9,2522.0,0.07929631]
[1724864542173,0.4152589,2523.4,2522.5,3.96418]
[1724864542174,3.9631,2523.3,2522.5,3.96418]
[1724864542378,3.9631,2523.3,2522.5,3.86418]
[1724864542559,3.96322,2523.2,2522.5,3.86418]
[1724864542767,4.3781889,2523.4,2522.3,3.96452]
[1724864542768,0.66501489,2523.3,2522.3,3.96452]
[1724864543086,3.96354,2523.0,2522.3,3.96452]
[1724864543290,3.9633,2523.2,2522.5,3.96429]
[1724864543496,0.4152589,2523.4,2522.5,3.96429]
[1724864543497,0.4152589,2523.4,2522.6,0.07927912]
[1724864543652,0.4152589,2523.4,2522.7,3.96398]
[1724864543653,0.31677535,2523.3,2522.7,3.96398]
[1724864543986,0.4152589,2523.4,2523.1,3.96335]
[1724864544287,0.4152589,2523.4,2523.3,3.96306]
[1724864544587,0.4152589,2523.4,2523.2,3.96314]
[1724864544789,0.4152589,2523.4,2522.6,6.26338]
[1724864544790,4.3781789,2523.4,2522.8,3.96383]
[1724864545005,0.85307679,2523.4,2522.9,3.96369]
[1724864545289,0.85307679,2523.4,2522.8,3.96384]
[1724864545450,0.48158468,2523.3,2522.8,3.96384]
[1724864545651,0.48158468,2523.3,2522.7,3.964]
[1724864545951,0.48039459,2523.3,2522.7,3.964]
[1724864546183,0.4152589,2523.4,2522.8,3.96383]
[1724864546694,0.4152589,2523.4,2522.9,3.96356]
[1724864546999,0.85305279,2523.4,2522.8,3.96383]
[1724864547199,0.4152589,2523.4,2523.0,3.96353]
[1724864547703,3.96316,2523.3,2522.6,6.26338]
[1724864547988,0.43784189,2523.2,2522.4,3.9644]
[1724864548161,4.3782789,2523.4,2522.8,3.96383]
[1724864548367,4.3782789,2523.4,2522.9,0.0792626]
[1724864548368,0.4152589,2523.4,2522.9,0.0792626]
[1724864548677,0.4152589,2523.4,2523.1,3.96322]
[1724864548885,0.4152589,2523.4,2523.1,4.04247183]
[1724864549082,4.3782689,2523.4,2522.6,2.2546]
[1724864549283,5.21235979,2523.4,2522.8,3.9637]
[1724864549482,1.24934979,2523.4,2522.9,0.07926434]
[1724864549801,1.24934979,2523.4,2522.8,3.9637]
[1724864549802,0.4152589,2523.4,2522.8,3.9637]
[1724864549953,4.3782089,2523.4,2522.8,3.9637]
[1724864550155,3.96344,2523.1,2522.2,3.96472]
[1724864550361,4.40101089,2523.3,2522.6,3.96404]
[1724864550601,3.96347,2523.1,2522.6,3.96416]
[1724864551110,0.48162698,2523.2,2522.6,3.96416]
[1724864551251,0.48162698,2523.2,2522.4,3.96436]
[1724864551252,0.48162698,2523.2,2522.1,2.2539]
[1724864551461,3.96379,2522.9,2522.2,3.96469]
[1724864551686,4.3781989,2523.4,2522.5,3.96429]
[1724864551687,3.96342,2523.1,2522.5,3.96429]
[1724864551852,3.96342,2523.1,2522.4,7.92879]
[1724864552050,3.96342,2523.1,2522.5,3.96422]
[1724864552300,4.79985799,2523.1,2522.4,3.96437]
[1724864552465,3.96379,2522.9,2522.1,2.2539]
[1724864552666,0.83643799,2523.1,2521.8,3.96535]
[1724864552667,0.4799858,2523.0,2521.8,3.96535]
[1724864552874,3.96462,2522.4,2521.8,3.96531]
[1724864553084,3.13632922,2522.4,2521.8,3.96531]
[1724864553285,3.96464,2522.3,2521.8,3.96531]
[1724864553491,3.96506,2522.1,2521.6,2.3936]
[1724864553788,3.96526,2521.9,2521.4,3.96604]
[1724864554107,3.96605,2521.4,2520.9,3.96679]
[1724864554260,3.96605,2521.4,2520.8,2.298]
[1724864554261,0.396526,2521.9,2520.8,2.298]
[1724864554459,3.9663,2521.3,2520.8,2.298]
[1724864554823,3.96578,2521.6,2520.5,0.24448]
[1724864554958,3.96738,2520.6,2519.4,3.96915]
[1724864555283,3.96738,2520.6,2519.4,7.93816]
[1724864555284,3.96804,2520.2,2519.4,7.93816]
[1724864555456,3.96804,2520.2,2519.5,1.11714076]
[1724864555658,3.96813,2520.1,2519.5,1.11714076]
[1724864556120,7.93637,2520.1,2519.5,1.0377728]
[1724864556406,3.96813,2520.1,2519.5,1.0377728]
[1724864556571,3.96813,2520.1,2519.6,0.89759128]
[1724864556768,3.96813,2520.1,2519.5,0.07936797]
[1724864556769,0.41553185,2520.0,2519.5,4.04839797]
[1724864556968,0.41553185,2520.0,2519.5,0.07936797]
[1724864557287,3.96931,2519.4,2518.7,3.97027]
[1724864557493,3.96899,2519.6,2518.9,3.96995]
[1724864558156,0.41553185,2520.0,2519.3,3.96922]
[1724864558382,0.41553185,2520.0,2518.9,2.3188]
[1724864558383,0.41553185,2520.0,2519.6,3.96875]
[1724864558594,0.41553185,2520.0,2519.7,4.04796801]
[1724864559203,0.41553185,2520.0,2519.8,3.96854]
[1724864559368,0.31553185,2520.0,2519.9,0.07935634]
[1724864559556,6.33507,2520.7,2519.9,4.37319963]
[1724864559764,7.93355,2521.0,2520.0,3.96817]
[1724864560105,3.96636,2521.2,2520.3,7.93556]
[1724864560260,3.96669,2521.0,2520.4,0.793556]
[1724864560461,0.41548832,2520.9,2520.3,3.96764]
[1724864560898,0.41548832,2520.9,2519.6,2.3017]
[1724864560899,0.41548832,2520.9,2519.9,3.96835]
[1724864561100,3.96703,2520.8,2519.9,3.9683]
[1724864561304,3.96759,2520.5,2519.7,3.96866]
[1724864561459,3.96721,2520.7,2520.0,3.96814]
[1724864561663,3.96721,2520.7,2519.9,3.96825]
[1724864562065,3.96721,2520.7,2520.1,3.96808]
[1724864562265,0.41548832,2520.9,2519.7,3.96863]
[1724864562461,0.41548832,2520.9,2519.6,6.50073]
[1724864562462,3.96722,2520.7,2519.6,6.50073]
[1724864562691,2.4936,2520.8,2519.6,2.53187]
[1724864562905,2.4936,2520.8,2518.6,5.83302473]
[1724864562906,3.9682,2520.1,2519.3,3.9693]
[1724864563129,0.29090883,2520.7,2519.4,0.07937177]
[1724864563130,3.96788,2520.3,2519.4,0.07937177]
[1724864563326,3.96788,2520.3,2519.7,3.9686]
[1724864563605,5.4936,2520.8,2519.8,0.79374]
[1724864563824,3.96735,2520.6,2519.7,3.96867]
[1724864564052,4.913445,2520.6,2519.7,4.762431]
[1724864564248,4.913445,2520.6,2519.4,3.96917]
[1724864564249,3.96818,2520.1,2519.4,3.96917]
[1724864564412,3.968,2520.2,2519.5,3.96901]
[1724864564611,3.96817,2520.1,2519.5,3.96901]
[1724864564859,3.96817,2520.1,2519.3,4.20951]
[1724864564860,3.96825,2520.0,2519.3,4.20941]
[1724864565019,3.96825,2520.0,2518.9,3.96991]
[1724864565020,3.96833,2520.0,2518.9,3.96991]
[1724864565245,3.96901,2519.6,2518.9,3.96987]
[1724864565451,6.96796,2520.2,2518.8,2.4721]
[1724864565452,3.96921,2519.4,2518.8,2.4721]
[1724864565756,3.96921,2519.4,2518.7,3.97025]
[1724864566053,3.96921,2519.4,2518.7,3.97019]
[1724864566614,3.96866,2519.8,2518.8,0.07939115]
[1724864566936,0.696866,2519.8,2518.7,3.97024]
[1724864567144,0.696866,2519.8,2519.0,3.96968]
[1724864567145,3.96901,2519.6,2519.0,3.96968]
[1724864567460,3.96829,2520.0,2519.1,4.04901735]
[1724864567673,7.93669,2520.0,2519.1,6.52108735]
[1724864567818,3.96829,2520.0,2519.3,3.96923]
[1724864568019,3.96873,2519.7,2519.1,6.44164]
[1724864568249,3.96813,2520.1,2518.7,2.2675]
[1724864568421,3.96901,2519.6,2519.0,3.9698]
[1724864568755,3.96863,2519.8,2519.2,3.96949]
[1724864568910,3.96799,2520.2,2519.5,3.96894]
[1724864569115,3.9682,2520.1,2519.5,7.93789]
[1724864569359,3.96832,2520.0,2519.5,3.96894]
[1724864569654,5.061819,2520.1,2519.5,3.96894]
[1724864569856,3.9682,2520.1,2519.5,3.96894]
[1724864570014,3.96819,2520.1,2519.5,3.96894]
[1724864570213,3.96819,2520.1,2519.3,8.01790376]
[1724864570423,3.96841,2519.9,2519.3,8.01790376]
[1724864570614,3.96841,2519.9,2519.3,3.96922]
[1724864571056,0.79366,2519.9,2518.7,2.2675]
[1724864571255,3.96889,2519.6,2519.1,3.96966]
[1724864571636,7.93787,2519.6,2519.1,3.96966]
[1724864571976,7.93787,2519.6,2518.7,10.20791]
[1724864571977,3.96944,2519.3,2518.7,10.20791]
[1724864572122,3.96915,2519.5,2518.7,2.2675]
[1724864572320,3.96915,2519.5,2519.0,3.96979]
[1724864572568,3.96915,2519.5,2518.8,7.94008]
[1724864572731,3.96921,2519.4,2518.8,3.97004]
[1724864572927,3.96846,2519.9,2518.8,3.97003]
[1724864572928,3.96945,2519.3,2518.8,3.97003]
[1724864573130,3.96945,2519.3,2518.6,3.97036]
[1724864573359,3.96984,2519.0,2518.4,3.97067]
[1724864573575,3.96956,2519.2,2518.5,3.97049]
[1724864573720,3.96896,2519.6,2518.6,0.420133]
[1724864573920,3.9686,2519.8,2519.1,3.96954]
[1724864574127,3.96875,2519.7,2519.1,4.366534]
[1724864574326,3.96875,2519.7,2519.1,3.96958]
[1724864574539,3.96875,2519.7,2519.1,7.93915]
[1724864574839,3.96794,2520.2,2519.5,3.96895]
[1724864575284,3.9681,2520.1,2519.5,3.96895]
[1724864575636,3.96858,2519.8,2519.3,3.96925]
[1724864575866,3.96858,2519.8,2519.1,3.96952]
[1724864576036,3.96858,2519.8,2519.3,3.96934]
[1724864576373,0.41562559,2520.0,2519.0,0.23084]
[1724864576575,0.41562559,2520.0,2519.2,3.96949]
[1724864576576,3.96872,2519.7,2519.2,3.96949]
[1724864576864,0.41562559,2520.0,2519.4,3.96911]
[1724864576865,4.38388559,2520.0,2519.4,3.96911]
[1724864577021,3.96857,2519.8,2519.2,3.96937]
[1724864577227,3.96891,2519.6,2519.0,3.96972]
[1724864577721,3.96891,2519.6,2519.1,3.96965]
[1724864577925,3.96864,2519.8,2519.2,3.96951]
[1724864578169,3.96864,2519.8,2519.3,3.96934]
[1724864578333,7.9373,2519.8,2519.2,3.96941]
[1724864578727,3.96864,2519.8,2519.2,3.96941]
[1724864579085,4.38397559,2520.0,2519.3,3.96925]
[1724864579285,8.35234559,2520.0,2519.4,3.96919]
[1724864579522,4.38397559,2520.0,2519.4,3.96919]
[1724864579813,4.38397559,2520.0,2519.7,3.96864]
[1724864579814,0.41562559,2520.0,2519.7,3.96864]
[1724864580118,0.41562559,2520.0,2519.6,3.96873]
[1724864580320,0.41562559,2520.0,2519.6,7.93752]
[1724864580608,0.41562559,2520.0,2519.6,3.96873]
[1724864580832,0.41562559,2520.0,2519.9,14.35493]
[1724864581115,2.3034,2521.4,2520.7,3.96706]
[1724864581116,3.96622,2521.3,2520.7,3.96706]
[1724864581287,6.26955,2521.4,2520.8,0.396706]
[1724864581288,3.96639,2521.2,2520.8,0.396706]
[1724864581613,6.26955,2521.4,2520.1,3.96796]
[1724864581614,3.96714,2520.8,2520.1,3.96796]
[1724864581785,7.9335,2521.0,2520.3,3.96765]
[1724864581989,7.9335,2521.0,2520.0,2.3309]
[1724864581990,3.96696,2520.9,2520.2,3.96785]
[1724864582312,3.96757,2520.5,2519.8,3.96847]
[1724864582522,3.96725,2520.7,2520.1,3.96807]
[1724864582675,3.96725,2520.7,2520.0,3.96811]
[1724864582891,3.22417,2520.9,2519.8,4.2096]
[1724864582892,3.96747,2520.5,2519.8,4.2096]
[1724864583091,3.9681,2520.1,2519.3,2.4113]
[1724864583291,0.96560145,2520.0,2518.8,2.4113]
[1724864583532,0.96560145,2520.0,2518.6,3.97037]
[1724864583533,3.96914,2519.5,2518.6,3.97037]
[1724864584244,3.96914,2519.5,2518.6,3.97038]
[1724864584245,3.96917,2519.5,2518.6,3.97038]
[1724864584408,3.96917,2519.5,2518.6,5.005618]
[1724864584929,2.4308,2519.9,2519.2,3.96951]
[1724864584930,3.96846,2519.9,2519.2,3.96951]
[1724864585142,3.96858,2519.8,2519.0,3.96971]
[1724864585344,3.96858,2519.8,2519.1,0.396971]
[1724864585696,3.96846,2519.9,2519.1,0.396971]
[1724864586034,3.96876,2519.7,2519.0,3.96971]
[1724864586196,3.96876,2519.7,2518.8,3.97]
[1724864586395,3.96905,2519.5,2518.7,2.3959]
[1724864586618,2.686176,2519.7,2518.7,3.03253]
[1724864586818,3.96917,2519.5,2518.4,0.3976]
[1724864586992,3.96917,2519.5,2518.8,3.97001]
[1724864587415,2.2893,2520.1,2518.9,0.07939255]
[1724864587603,3.96828,2520.0,2519.3,3.96931]
[1724864587805,3.96828,2520.0,2519.3,1.11283774]
[1724864588404,3.96843,2519.9,2519.3,1.11283774]
[1724864588601,3.96843,2519.9,2519.3,0.07937674]
[1724864589039,6.25751,2520.1,2519.3,0.07937674]
[1724864589215,2.2893,2520.1,2519.3,0.07937674]
[1724864589429,3.96751,2520.5,2519.8,3.96844]
[1724864589632,3.96719,2520.7,2520.0,3.96819]
[1724864589832,3.96719,2520.7,2520.1,0.07935321]
[1724864590133,3.96783,2520.3,2519.9,0.396844]
[1724864590356,3.96754,2520.5,2519.8,4.04791502]
[1724864590533,3.96754,2520.5,2519.8,4.28750502]
[1724864590534,7.93512,2520.5,2519.8,4.28750502]
[1724864590736,3.96789,2520.3,2519.6,3.96882]
[1724864591062,2.3774,2520.3,2518.9,6.314]
[1724864591243,3.96901,2519.6,2518.9,2.3441]
[1724864591439,3.9692,2519.4,2518.9,2.3441]
[1724864591976,3.96863,2519.8,2518.6,2.3441]
[1724864592268,3.96934,2519.4,2518.6,2.3441]
[1724864592568,3.96934,2519.4,2518.7,3.97022]
[1724864592778,3.96974,2519.1,2518.6,2.3441]
[1724864593078,0.396974,2519.1,2518.3,2.4646]
[1724864593219,7.93954,2519.1,2518.4,3.97073]
[1724864593426,3.96976,2519.1,2518.4,5.011297]
[1724864593979,3.96976,2519.1,2518.4,5.09069736]
[1724864594138,3.97042,2518.7,2518.0,3.97127]
[1724864594342,3.97042,2518.7,2518.0,0.794294]
[1724864594343,3.97061,2518.6,2518.0,0.794294]
[1724864594529,2.3756,2519.0,2518.0,0.794294]
[1724864594530,3.97063,2518.5,2518.0,0.794294]
[1724864594729,3.97063,2518.5,2517.9,2.4179]
[1724864594730,3.97079,2518.4,2517.9,2.49731846]
[1724864595288,3.97055,2518.6,2518.0,3.97138]
[1724864595570,2.3756,2518.4,2516.9,3.97311]
[1724864595780,3.97206,2517.6,2516.8,2.4179]
[1724864595974,3.97206,2517.6,2516.3,3.97408]
[1724864595975,3.97206,2517.6,2516.6,3.9736]
[1724864596266,2.3756,2517.8,2516.4,2.4179]
[1724864596267,3.97255,2517.3,2516.4,2.4179]
[1724864596423,3.972,2517.7,2516.7,3.97344]
[1724864596622,3.972,2517.7,2516.9,3.97313]
[1724864596876,3.97156,2517.9,2516.9,3.97313]
[1724864596877,3.97156,2517.9,2517.0,0.07944705]
[1724864597040,3.0,2518.1,2517.2,3.97255]
[1724864597041,3.97143,2518.0,2517.2,3.97255]
[1724864597225,6.97131,2518.1,2517.3,0.0794408]
[1724864597226,0.41581503,2517.7,2517.3,0.0794408]
[1724864597426,0.41581503,2517.7,2517.3,4.0518208]
[1724864597878,0.41581503,2517.7,2517.4,3.97233]
[1724864598062,3.97037,2518.7,2517.7,2.3729]
[1724864598278,0.41573551,2518.3,2517.8,4.0511318]
[1724864598460,2.2519,2519.0,2518.0,3.97125]
[1724864598461,3.9702,2518.8,2518.0,3.97125]
[1724864598639,0.41576744,2518.6,2518.1,0.07941452]
[1724864598942,3.97063,2518.5,2517.9,0.64240318]
[1724864599153,0.41576744,2518.6,2517.9,4.61390318]
[1724864599340,0.41576744,2518.6,2518.0,0.46141132]
[1724864599543,3.97092,2518.4,2517.7,2.3729]
[1724864599883,3.97095,2518.3,2517.7,2.3729]
[1724864600045,4.38626744,2518.6,2517.7,2.3729]
[1724864600377,0.41576744,2518.6,2517.9,3.97154]
[1724864600691,6.44697,2519.0,2517.8,4.68560267]
[1724864600692,6.42771,2519.4,2518.5,3.97061]
[1724864600980,0.41574322,2519.1,2518.6,0.47645751]
[1724864601160,0.41574322,2519.1,2519.0,3.96982]
[1724864601373,2.4585,2520.4,2519.4,3.96915]
[1724864601374,3.96797,2520.2,2519.4,3.96915]
[1724864601710,3.96797,2520.2,2519.2,3.9695]
[1724864601711,0.41549616,2519.8,2519.5,4.04841037]
[1724864601879,3.96797,2520.2,2519.5,4.04841037]
[1724864602083,3.9671,2520.8,2520.0,3.96824]
[1724864602272,3.96558,2521.7,2519.7,2.369]
[1724864602273,0.41546913,2520.4,2520.3,3.96778]
[1724864602475,0.41546913,2520.4,2519.7,6.3376]
[1724864602476,3.96669,2521.0,2520.0,3.96818]
[1724864602669,0.41543338,2520.9,2520.1,4.04731373]
[1724864602875,4.94109914,2520.9,2520.1,4.4520451]
[1724864603174,4.94109914,2520.9,2519.8,0.2369]
[1724864603175,3.96749,2520.5,2519.8,0.2369]
[1724864603485,3.96749,2520.5,2519.7,5.369]
[1724864603486,3.96732,2520.6,2519.7,6.3377]
[1724864603821,3.96732,2520.6,2519.8,4.04789794]
[1724864604023,3.96747,2520.5,2519.8,0.07935794]
[1724864604322,3.96747,2520.5,2519.7,6.3377]
[1724864604530,3.96763,2520.4,2519.7,2.369]
[1724864604813,3.96782,2520.3,2519.4,3.96918]
[1724864605114,3.96794,2520.2,2519.4,3.96918]
[1724864605429,3.96813,2520.1,2519.3,6.3547]
[1724864605722,3.96794,2520.2,2518.9,3.0]
[1724864605723,3.96827,2520.0,2518.9,5.3377]
[1724864606025,3.96767,2520.4,2519.0,0.07938091]
[1724864606174,3.0,2520.5,2519.6,3.96888]
[1724864606374,3.96774,2520.4,2519.4,3.96915]
[1724864606574,3.96805,2520.2,2519.4,3.96915]
[1724864606779,3.96842,2519.9,2519.2,3.9695]
[1724864607108,7.52636576,2520.5,2519.2,4.7471087]
[1724864607109,3.96812,2520.1,2519.2,4.7471087]
[1724864607316,0.41543338,2520.9,2519.8,3.96856]
[1724864607317,4.52586576,2520.8,2519.8,3.96856]
[1724864607491,4.52586576,2520.8,2519.3,4.57995326]
[1724864607492,3.96731,2520.6,2519.9,4.04761094]
[1724864607676,3.96731,2520.6,2520.0,0.40476109]
[1724864607972,0.41543338,2520.9,2520.2,3.96788]
[1724864608176,0.41543338,2520.9,2520.3,4.0470177]
[1724864608377,3.96722,2520.7,2520.0,0.40476109]
[1724864608617,4.52587576,2520.8,2520.0,3.96814]
[1724864608775,4.52587576,2520.8,2519.6,2.2748]
[1724864608776,3.96704,2520.8,2519.9,3.96829]
[1724864608975,4.46117091,2520.8,2519.9,3.96829]
[1724864609219,4.46117091,2520.8,2520.1,3.96804]
[1724864609220,7.93418,2520.8,2520.1,3.96804]
[1724864609418,3.96704,2520.8,2520.1,3.96804]
[1724864609625,0.41543338,2520.9,2520.3,3.96775]
[1724864609847,3.41543338,2520.9,2520.3,3.96775]
[1724864610033,3.41543338,2520.9,2520.5,0.06783504]
[1724864610252,3.9673,2520.6,2520.5,0.06783504]
[1724864610459,3.41543338,2520.9,2519.7,0.22748]
[1724864610628,0.41543338,2520.9,2520.4,2.4046]
[1724864610826,3.96708,2520.8,2520.1,3.96801]
[1724864611029,0.41543338,2520.9,2520.2,0.07934481]
[1724864611256,0.41543338,2520.9,2520.4,3.96758]
[1724864611463,0.41543338,2520.9,2520.5,4.04664519]
[1724864612166,3.96606,2521.4,2520.7,3.96704]
[1724864612533,0.41546785,2521.1,2520.7,4.04637251]
[1724864612857,3.96581,2521.6,2520.7,4.04637251]
[1724864612858,3.96581,2521.6,2521.0,7.93316]
[1724864613063,0.41544616,2521.5,2521.1,0.079322]
[1724864613477,0.41544616,2521.5,2521.2,3.96629]
[1724864613659,3.96515,2522.0,2521.3,3.96619]
[1724864613984,0.641685,2521.9,2521.3,0.07931688]
[1724864614198,0.41540211,2522.0,2521.4,2.322]
[1724864614479,0.41540211,2522.0,2521.6,3.96558]
[1724864614682,0.41540211,2522.0,2521.7,0.07930032]
[1724864615038,0.41540211,2522.0,2521.4,6.28798]
[1724864615340,0.41540211,2522.0,2520.7,6.9671]
[1724864615341,3.96543,2521.8,2521.0,6.42647]
[1724864615642,3.96579,2521.6,2520.7,3.96705]
[1724864615981,0.396579,2521.5,2520.8,3.96697]
[1724864616194,0.396579,2521.5,2520.7,3.96705]
[1724864616195,4.362589,2521.5,2520.9,0.1]
[1724864616490,0.8328379,2521.4,2520.9,0.1]
[1724864616787,3.96547,2521.8,2521.1,3.9664]
[1724864617280,0.55883576,2521.9,2520.9,0.1]
[1724864617488,3.96599,2521.5,2520.9,0.1]
[1724864617693,4.759224,2521.4,2520.9,0.1]
[1724864617845,3.96638,2521.2,2520.9,0.1]
[1724864618046,7.93222,2521.4,2520.9,0.1]
[1724864618285,2.4948,2521.7,2520.9,0.1]
[1724864618471,0.24948,2521.6,2520.9,0.1]
[1724864618794,3.86667,2521.0,2520.4,3.96752]
[1724864619087,3.9664,2521.2,2520.5,3.96734]
[1724864619651,0.24948,2521.6,2520.3,6.43815]
[1724864619852,3.9665,2521.2,2520.6,3.96721]
[1724864620046,0.39665,2521.1,2520.6,3.96721]
[1724864620260,0.39665,2521.1,2520.5,3.96737]
[1724864620599,0.39665,2521.1,2520.3,6.43814]
[1724864620799,3.9668,2521.0,2520.3,3.96764]
[1724864620964,3.9668,2521.0,2520.4,3.96752]
[1724864621166,0.793324,2521.0,2520.1,3.96798]
[1724864621466,3.96709,2520.8,2520.1,7.93596]
[1724864621666,3.96709,2520.8,2520.2,3.96789]
[1724864621866,3.96676,2521.0,2520.3,3.96774]
[1724864622117,3.96693,2520.9,2519.9,2.3206]
[1724864622269,3.96693,2520.9,2520.4,3.96761]
[1724864622466,3.96659,2521.1,2520.5,0.07934047]
[1724864622710,0.396659,2521.0,2520.4,3.96761]
[1724864623314,3.96689,2520.9,2520.2,3.96781]
[1724864623620,0.396659,2521.0,2520.0,3.96815]
[1724864623621,3.96747,2520.5,2520.0,3.96815]
[1724864623782,4.761121,2520.4,2519.9,2.3206]
[1724864623986,4.761121,2520.4,2519.6,3.96874]
[1724864623987,3.96764,2520.4,2519.6,3.96874]
[1724864624206,3.96804,2520.2,2519.5,2.2908]
[1724864624523,3.96855,2519.9,2519.5,2.2908]
[1724864624865,3.96866,2519.8,2519.1,2.2697]
[1724864625207,3.96866,2519.8,2519.3,3.96932]
[1724864625513,3.96771,2520.4,2519.4,0.07937048]
[1724864625719,2.299,2520.9,2519.4,0.07937048]
[1724864625720,3.96802,2520.2,2519.6,3.96876]
[1724864625917,6.96718,2520.7,2519.1,6.23935]
[1724864625918,3.96849,2519.9,2519.2,3.96942]
[1724864626122,3.96811,2520.1,2519.4,3.96904]
[1724864626266,0.696718,2520.6,2519.1,2.2697]
[1724864626470,3.96874,2519.7,2519.1,2.2697]
[1724864626766,3.96814,2520.1,2519.4,3.96908]
[1724864626767,3.96812,2520.1,2519.4,3.96908]
[1724864626966,3.96812,2520.1,2519.5,3.96903]
[1724864626967,3.96818,2520.1,2519.5,3.96903]
[1724864627411,7.93642,2520.1,2519.5,3.96903]
[1724864627624,3.96838,2520.0,2519.3,3.96922]
[1724864627789,3.96844,2519.9,2519.3,3.96922]
[1724864628129,3.96844,2519.9,2519.1,6.23926]
[1724864628130,3.96844,2519.9,2519.1,10.20885]
[1724864628338,3.96913,2519.5,2518.8,3.97009]
[1724864628494,3.96913,2519.5,2518.9,3.9699]
[1724864628691,3.96945,2519.3,2518.7,2.3022]
[1724864629005,4.366023,2519.5,2518.9,3.96996]
[1724864629349,0.41566667,2519.4,2518.8,3.96998]
[1724864629540,0.41566667,2519.4,2518.9,3.96998]
[1724864630218,0.41566667,2519.4,2518.8,3.96998]
[1724864630738,3.96961,2519.2,2518.6,3.97036]
[1724864631358,3.96961,2519.2,2518.5,3.9705]
[1724864631494,3.96961,2519.2,2518.6,3.97044]
[1724864631694,3.9696,2519.2,2518.7,3.97026]
[1724864632596,0.41566667,2519.4,2519.0,3.96973]
[1724864632839,0.41566667,2519.4,2518.9,3.96986]
[1724864633036,6.43703,2520.0,2519.3,3.96935]
[1724864633233,10.40542,2520.0,2519.3,3.96935]
[1724864633405,0.41568225,2519.8,2519.5,3.96894]
[1724864633607,0.41568225,2519.8,2519.5,3.9689]
[1724864633821,0.41568225,2519.8,2519.6,0.07936702]
[1724864634508,0.41568225,2519.8,2519.5,3.9689]
[1724864635162,0.41568225,2519.8,2519.1,3.96955]
[1724864635656,4.38437225,2519.8,2519.2,3.96941]
[1724864635861,0.43843723,2519.7,2519.0,3.96981]
[1724864636014,4.38432225,2519.8,2519.2,3.96942]
[1724864636748,3.96874,2519.7,2519.1,3.96954]
[1724864636952,5.21958948,2519.8,2519.1,3.96954]
[1724864637156,4.38432225,2519.8,2519.3,3.96931]
[1724864637358,0.41568225,2519.8,2519.3,3.96931]
[1724864637658,0.41568225,2519.8,2519.5,3.96903]
[1724864638412,0.41568225,2519.8,2519.3,3.96921]
[1724864638616,0.41568225,2519.8,2519.3,6.27051]
[1724864638816,0.41568225,2519.8,2519.3,10.23978]
[1724864639016,0.41568225,2519.8,2519.3,6.27051]
[1724864639336,0.41568225,2519.8,2519.3,10.23978]
[1724864639533,0.41568225,2519.8,2519.3,10.23977]
[1724864639760,0.41568225,2519.8,2519.4,3.96918]
[1724864640413,0.41568225,2519.8,2519.6,3.96888]
[1724864640616,3.96772,2520.4,2519.7,4.04809092]
[1724864640868,0.41559975,2520.2,2519.8,3.96848]
[1724864641159,0.41559975,2520.2,2520.0,3.96816]
[1724864641746,0.41559975,2520.2,2519.4,0.627062]
[1724864641747,0.41559975,2520.2,2519.5,3.96894]
[1724864641918,0.41559975,2520.2,2519.3,2.3013]
[1724864641919,3.96844,2519.9,2519.3,2.3013]
[1724864642120,3.96844,2519.9,2518.9,3.96992]
[1724864642121,3.96849,2519.9,2518.9,2.4006]
[1724864642321,2.71669975,2520.2,2519.3,3.96932]
[1724864642629,2.71669975,2520.2,2518.9,6.37056]
[1724864642630,3.96873,2519.7,2519.2,3.9695]
[1724864642828,3.96856,2519.9,2519.3,3.96923]
[1724864642829,7.93707,2519.9,2519.3,3.96923]
[1724864643033,5.089374,2519.9,2519.3,3.96923]
[1724864643243,5.089374,2519.9,2519.3,7.93848]
[1724864643429,9.057864,2519.9,2519.3,7.93848]
[1724864643639,3.96861,2519.8,2519.3,3.96923]
[1724864643822,3.96936,2519.3,2518.6,3.97044]
[1724864644018,3.96936,2519.3,2518.8,3.97004]
[1724864644019,7.93882,2519.3,2518.8,3.97004]
[1724864644384,3.9689,2519.6,2519.0,3.9697]
[1724864644659,3.96859,2519.8,2519.2,3.96943]